[Event "Chinese Chess League 2019"]
[Site "Shen Yang"]
[Date "2019.12.07"]
[Round "22.11"]
[White "Ganguly, Surya Shekhar"]
[Black "Xiang, Zeyu"]
[Result "1-0"]
[ECO "C45"]
[WhiteElo "2644"]
[BlackElo "2448"]
[Annotator "ChessBase"]
[PlyCount "129"]
[EventDate "2019.04.09"]
[EventType "team-tourn"]
[EventCountry "CHN"]
[SourceTitle "playchess.com"]
[Source "ChessBase"]
[SourceQuality "1"]
[TimeControl "5400+30"]

1. e4 {[%emt 0:00:00]} e5 {[%emt 0:00:00]} 2. Nf3 {[%emt 0:00:00]} Nc6 {[%emt 0:00:00]} 3. d4 {[%emt 0:00:00]} exd4 {[%emt 0:00:00]} 4. Nxd4 {[%emt 0:00:06]} Nf6 {[%emt 0:00:00]} 5. Nxc6 {[%emt 0:00:09]} bxc6 {[%emt 0:00:00]} 6. Nd2 {[%emt 0:00:08]} d5 {[%emt 0:07:05]} 7. exd5 {[%emt 0:00:09]} cxd5 {[%emt 0:00:21]} 8. Bb5+ {[%emt 0:00:06]} Bd7 {[%emt 0:00:15]} 9. Bxd7+ {[%emt 0:00:05]} Qxd7 {[%emt 0:00:12]} 10. O-O {[%emt 0:00:06]} Be7 {[%emt 0:00:18]} 11. b3 {[%emt 0:00:06]} O-O {[%emt 0:00:24]} 12. Bb2 {[%emt 0:00:04]} c5 {[%emt 0:02:13]} 13. Qf3 {[%emt 0:00:46]} Qg4 {[%emt 0:03:24]} 14. Rfe1 {[%emt 0:01:34]} Rfe8 {[%emt 0:07:31]} 15. Rad1 {[%emt 0:02:08]} Qg6 {[%emt 0:08:30]} 16. Bxf6 {[%emt 0:16:45]} Bxf6 {[%emt 0:00:34]} 17. Qxd5 {[%emt 0:00:13]} Qxc2 {[%emt 0:06:08]} 18. Ne4 {[%emt 0:01:05]} Bd4 {[%emt 0:08:19]} 19. Qf5 {[%emt 0:31:31]} Kh8 {[%emt 0:04:01]} 20. Rc1 {[%emt 0:01:58]} g6 {[%emt 0:05:36]} 21. Qf6+ {[%emt 0:01:28]} Bxf6 {[%emt 0:00:17]} 22. Rxc2 {[%emt 0:00:05]} Bd4 {[%emt 0:02:32]} 23. Kf1 {[%emt 0:02:15]} a5 {[%emt 0:13:43]} 24. Rc4 {[%emt 0:04:06]} a4 {[%emt 0:03:14]} 25. Nxc5 {[%emt 0:03:47]} Rxe1+ {[%emt 0:01:42]} 26. Kxe1 {[%emt 0:00:13]} Bxc5 {[%emt 0:01:53]} 27. Rxc5 {[%emt 0:00:07]} axb3 {[%emt 0:00:29]} 28. axb3 {[%emt 0:00:06]} Ra2 {[%emt 0:00:28]} 29. g4 {[%emt 0:01:45]} Rb2 {[%emt 0:01:15]} 30. Rc3 {[%emt 0:04:33]} Kg7 {[%emt 0:07:04]} 31. Rf3 {[%emt 0:04:20]} f5 {[%emt 0:06:26]} 32. gxf5 {[%emt 0:00:53]} gxf5 {[%emt 0:00:35]} 33. Kd1 {[%emt 0:00:08]} Kf6 {[%emt 0:00:32]} 34. Kc1 {[%emt 0:00:11]} Ra2 {[%emt 0:00:56]} 35. b4 {[%emt 0:00:06]} Ke6 {[%emt 0:06:51]} 36. b5 {[%emt 0:00:55]} Ra5 {[%emt 0:02:47]} 37. Rb3 {[%emt 0:00:26]} Kd7 {[%emt 0:00:04]} 38. Kd2 {[%emt 0:01:36]} Kc7 {[%emt 0:01:14]} 39. b6+ {[%emt 0:00:29]} Kb7 {[%emt 0:00:06]} 40. Ke3 {[%emt 0:00:06]} Ra4 {[%emt 0:00:34]} 41. Rb2 {[%emt 0:09:09]} Re4+ {[%emt 0:00:25]} 42. Kf3 {[%emt 0:01:16]} Rh4 {[%emt 0:00:27]} 43. Kg3 {[%emt 0:01:33]} Rg4+ {[%emt 0:00:06]} 44. Kh3 {[%emt 0:00:06]} Rf4 {[%emt 0:00:38]} 45. Kg2 {[%emt 0:01:50]} Rg4+ {[%emt 0:00:06]} 46. Kf1 {[%emt 0:00:04]} Rh4 {[%emt 0:00:36]} 47. f3 {[%emt 0:00:13]} Rh6 {[%emt 0:01:55]} 48. Kg2 {[%emt 0:00:23]} f4 {[%emt 0:01:36]} 49. Rb5 {[%emt 0:03:27]} Rg6+ {[%emt 0:00:24]} 50. Kh3 {[%emt 0:00:02]} Rh6+ {[%emt 0:00:22]} 51. Kg4 {[%emt 0:00:08]} Rxh2 {[%emt 0:00:04]} 52. Kxf4 {[%emt 0:00:05]} h5 {[%emt 0:00:29]} 53. Kg3 {[%emt 0:00:32]} Rh1 {[%emt 0:00:04]} 54. Kg2 {[%emt 0:02:37]} Rh4 {[%emt 0:00:06]} 55. Kg3 {[%emt 0:02:29]} Rh1 {[%emt 0:00:05]} 56. Kf4 {[%emt 0:00:15]} Rh4+ {[%emt 0:00:39]} 57. Kg5 {[%emt 0:00:08]} Rh1 {[%emt 0:00:33]} 58. Rb4 {[%emt 0:00:52]} Rh2 {[%emt 0:01:33]} 59. f4 {[%emt 0:01:12]} h4 {[%emt 0:00:10]} 60. Kg4 {[%emt 0:00:54]} Rh1 {[%emt 0:00:39]} 61. Rb3 {[%emt 0:00:42]} Rf1 {[%emt 0:00:37]} 62. f5 {[%emt 0:00:47]} Rf2 {[%emt 0:00:56]} 63. Rf3 {[%emt 0:00:40]} Rg2+ {[%emt 0:00:20]} 64. Kxh4 {[%emt 0:00:06]} Kxb6 {[%emt 0:00:04]} 65. f6 {[%emt 0:00:16]} 1-0

[Event "Chinese Chess League 2019"]
[Site "Shen Yang"]
[Date "2019.12.07"]
[Round "22.13"]
[White "Chen, Qi b"]
[Black "Zou, Chen"]
[Result "0-1"]
[ECO "B81"]
[WhiteElo "2436"]
[BlackElo "2462"]
[Annotator "ChessBase"]
[PlyCount "82"]
[EventDate "2019.04.09"]
[EventType "team-tourn"]
[EventCountry "CHN"]
[SourceTitle "playchess.com"]
[Source "ChessBase"]
[SourceQuality "1"]
[TimeControl "5400+30"]

1. e4 {[%emt 0:00:00]} c5 {[%emt 0:00:00]} 2. Nf3 {[%emt 0:00:00]} d6 {[%emt 0:00:00]} 3. d4 {[%emt 0:00:00]} cxd4 {[%emt 0:00:00]} 4. Nxd4 {[%emt 0:00:00]} Nf6 {[%emt 0:00:00]} 5. Nc3 {[%emt 0:00:00]} a6 {[%emt 0:00:00]} 6. h3 {[%emt 0:00:00]} e6 {[%emt 0:00:00]} 7. g4 {[%emt 0:00:00]} Nfd7 {[%emt 0:00:01]} 8. g5 {[%emt 0:01:01]} b5 {[%emt 0:00:27]} 9. a3 {[%emt 0:00:05]} Bb7 {[%emt 0:00:04]} 10. Be3 {[%emt 0:01:09]} Be7 {[%emt 0:00:38]} 11. h4 {[%emt 0:00:42]} Nc6 {[%emt 0:00:08]} 12. Qd2 {[%emt 0:02:35]} O-O {[%emt 0:00:24]} 13. O-O-O {[%emt 0:01:57]} Nc5 {[%emt 0:00:13]} 14. f3 {[%emt 0:06:11]} Qc7 {[%emt 0:01:18]} 15. Kb1 {[%emt 0:07:11]} Rab8 {[%emt 0:00:06]} 16. h5 {[%emt 0:10:06]} b4 {[%emt 0:00:25]} 17. axb4 {[%emt 0:21:07]} Nxb4 {[%emt 0:01:08]} 18. g6 {[%emt 0:02:32]} Bf6 {[%emt 0:00:05]} 19. Bh3 {[%emt 0:13:54]} Bc8 {[%emt 0:08:42]} 20. Nb3 {[%emt 0:07:30]} Nbd3 {[%emt 0:04:56]} 21. Bxc5 {[%emt 0:06:16]} Nxc5 {[%emt 0:00:06]} 22. Qxd6 {[%emt 0:00:35]} Qxd6 {[%emt 0:00:04]} 23. Rxd6 {[%emt 0:00:03]} Nxb3 {[%emt 0:00:04]} 24. cxb3 {[%emt 0:00:05]} Rxb3 {[%emt 0:00:03]} 25. Rc1 {[%emt 0:04:25]} Be5 {[%emt 0:12:28]} 26. Rd3 {[%emt 0:08:13]} fxg6 {[%emt 0:08:22]} 27. hxg6 {[%emt 0:00:02]} hxg6 {[%emt 0:00:12]} 28. Ka2 {[%emt 0:01:03]} Rb4 {[%emt 0:01:57]} 29. b3 {[%emt 0:02:14]} Kf7 {[%emt 0:03:33]} 30. Na4 {[%emt 0:03:38]} Ke7 {[%emt 0:06:45]} 31. Rc6 {[%emt 0:01:35]} Rh8 {[%emt 0:15:58]} 32. Bg4 {[%emt 0:01:01]} Rh1 {[%emt 0:01:33]} 33. Nc3 {[%emt 0:00:28]} Rb8 {[%emt 0:03:16]} 34. Rc5 {[%emt 0:00:30]} Rh2+ {[%emt 0:08:13]} 35. Ka3 {[%emt 0:00:05]} Bd6 {[%emt 0:00:42]} 36. Rxd6 {[%emt 0:00:14]} Kxd6 {[%emt 0:00:04]} 37. Rg5 {[%emt 0:00:04]} Rc2 {[%emt 0:04:18]} 38. e5+ {[%emt 0:01:29]} Ke7 {[%emt 0:01:26]} 39. Ne4 {[%emt 0:00:07]} Bb7 {[%emt 0:00:38]} 40. Rxg6 {[%emt 0:01:01]} Bd5 {[%emt 0:00:21]} 41. Rxg7+ {[%emt 0:00:19]} Kf8 {[%emt 0:00:03]} 0-1

[Event "Chinese Chess League 2019"]
[Site "Shen Yang"]
[Date "2019.12.07"]
[Round "22.14"]
[White "Zhou, Zirun"]
[Black "Guo, Qi"]
[Result "0-1"]
[ECO "E16"]
[WhiteElo "2121"]
[BlackElo "2403"]
[Annotator "ChessBase"]
[PlyCount "112"]
[EventDate "2019.04.09"]
[EventType "team-tourn"]
[EventCountry "CHN"]
[SourceTitle "playchess.com"]
[Source "ChessBase"]
[SourceQuality "1"]
[TimeControl "5400+30"]

1. d4 {[%emt 0:00:00]} Nf6 {[%emt 0:00:00]} 2. c4 {[%emt 0:00:00]} e6 {[%emt 0:00:00]} 3. Nf3 {[%emt 0:00:29]} b6 {[%emt 0:01:00]} 4. g3 {[%emt 0:01:04]} Bb7 {[%emt 0:05:08]} 5. Bg2 {[%emt 0:00:12]} Bb4+ {[%emt 0:00:10]} 6. Bd2 {[%emt 0:01:08]} Be7 {[%emt 0:00:09]} 7. O-O {[%emt 0:00:30]} c6 {[%emt 0:00:05]} 8. Qc2 {[%emt 0:02:38]} d5 {[%emt 0:00:07]} 9. Rd1 {[%emt 0:02:44]} O-O {[%emt 0:02:28]} 10. Bf4 {[%emt 0:00:46]} Nbd7 {[%emt 0:00:12]} 11. b3 {[%emt 0:00:58]} c5 {[%emt 0:02:00]} 12. dxc5 {[%emt 0:11:39]} Bxc5 {[%emt 0:00:17]} 13. cxd5 {[%emt 0:03:55]} Nxd5 {[%emt 0:00:06]} 14. Nc3 {[%emt 0:00:41]} Rc8 {[%emt 0:04:06]} 15. Ng5 {[%emt 0:03:18]} g6 {[%emt 0:13:18]} 16. Bxd5 {[%emt 0:05:33]} exd5 {[%emt 0:02:39]} 17. Qd3 {[%emt 0:01:03]} Be7 {[%emt 0:02:56]} 18. h4 {[%emt 0:03:46]} Bf6 {[%emt 0:01:43]} 19. Rac1 {[%emt 0:01:34]} Nc5 {[%emt 0:00:39]} 20. Qd2 {[%emt 0:02:04]} d4 {[%emt 0:01:04]} 21. Nb5 {[%emt 0:02:46]} Qd5 {[%emt 0:07:24]} 22. Nf3 {[%emt 0:15:17]} Nxb3 {[%emt 0:06:58]} 23. axb3 {[%emt 0:00:15]} Rxc1 {[%emt 0:02:44]} 24. Rxc1 {[%emt 0:04:34]} Qxb5 {[%emt 0:00:05]} 25. Nxd4 {[%emt 0:02:04]} Qd5 {[%emt 0:00:08]} 26. Nf3 {[%emt 0:00:27]} Qxb3 {[%emt 0:00:08]} 27. Rc7 {[%emt 0:04:40]} Bxf3 {[%emt 0:05:27]} 28. exf3 {[%emt 0:00:17]} a5 {[%emt 0:02:11]} 29. Kg2 {[%emt 0:01:40]} Rd8 {[%emt 0:01:13]} 30. Qe2 {[%emt 0:01:00]} a4 {[%emt 0:02:03]} 31. Ra7 {[%emt 0:00:40]} b5 {[%emt 0:07:48]} 32. Bg5 {[%emt 0:03:45]} Bxg5 {[%emt 0:04:05]} 33. hxg5 {[%emt 0:00:10]} Qd5 {[%emt 0:01:48]} 34. Qe7 {[%emt 0:00:32]} Rf8 {[%emt 0:00:26]} 35. Ra6 {[%emt 0:04:43]} Qd8 {[%emt 0:01:18]} 36. Qc5 {[%emt 0:00:24]} Qd7 {[%emt 0:00:59]} 37. Rb6 {[%emt 0:02:35]} Qf5 {[%emt 0:05:47]} 38. Qb4 {[%emt 0:03:47]} Ra8 {[%emt 0:03:59]} 39. Rxb5 {[%emt 0:00:13]} Qc8 {[%emt 0:00:08]} 40. Ra5 {[%emt 0:03:15]} Qe8 {[%emt 0:00:49]} 41. Qc5 {[%emt 0:00:21]} Rxa5 {[%emt 0:01:17]} 42. Qxa5 {[%emt 0:00:06]} h5 {[%emt 0:01:38]} 43. gxh6 {[%emt 0:03:59]} Kh7 {[%emt 0:00:06]} 44. Qd2 {[%emt 0:04:31]} a3 {[%emt 0:04:36]} 45. Qc3 {[%emt 0:04:02]} Qf8 {[%emt 0:00:06]} 46. g4 {[%emt 0:01:31]} Kxh6 {[%emt 0:00:11]} 47. Qe3+ {[%emt 0:00:05]} Kh7 {[%emt 0:00:07]} 48. Qa7 {[%emt 0:00:06]} Kg8 {[%emt 0:00:13]} 49. Qa5 {[%emt 0:01:25]} Qd6 {[%emt 0:00:22]} 50. g5 {[%emt 0:00:35]} Qd3 {[%emt 0:00:45]} 51. Qb4 {[%emt 0:00:41]} Kg7 {[%emt 0:01:12]} 52. Qa5 {[%emt 0:00:58]} Qb3 {[%emt 0:01:26]} 53. f4 {[%emt 0:00:23]} Qb2 {[%emt 0:00:53]} 54. f5 {[%emt 0:00:25]} gxf5 {[%emt 0:00:08]} 55. Qxf5 {[%emt 0:00:08]} a2 {[%emt 0:00:05]} 56. g6 {[%emt 0:00:08]} Qf6 {[%emt 0:00:12]} 0-1

[Event "Chinese Chess League 2019"]
[Site "Shen Yang"]
[Date "2019.12.07"]
[Round "22.15"]
[White "Zhao, Shengxin"]
[Black "Shen, Yang"]
[Result "1/2-1/2"]
[ECO "D53"]
[WhiteElo "2099"]
[BlackElo "2410"]
[Annotator "ChessBase"]
[PlyCount "74"]
[EventDate "2019.04.09"]
[EventType "team-tourn"]
[EventCountry "CHN"]
[SourceTitle "playchess.com"]
[Source "ChessBase"]
[SourceQuality "1"]
[TimeControl "5400+30"]

1. c4 {[%emt 0:00:30]} Nf6 {[%emt 0:00:27]} 2. Nc3 {[%emt 0:00:30]} e6 {[%emt 0:00:43]} 3. d4 {[%emt 0:05:00]} d5 {[%emt 0:01:37]} 4. Nf3 {[%emt 0:03:10]} Be7 {[%emt 0:05:00]} 5. Bg5 {[%emt 0:04:29]} Nbd7 {[%emt 0:03:40]} 6. e3 {[%emt 0:04:58]} h6 {[%emt 0:00:16]} 7. Bh4 {[%emt 0:01:30]} c6 {[%emt 0:01:21]} 8. a4 {[%emt 0:02:40]} a5 {[%emt 0:01:13]} 9. Bd3 {[%emt 0:00:46]} O-O {[%emt 0:01:08]} 10. O-O {[%emt 0:00:40]} dxc4 {[%emt 0:04:36]} 11. Bxc4 {[%emt 0:00:07]} Nd5 {[%emt 0:00:06]} 12. Bxe7 {[%emt 0:04:19]} Qxe7 {[%emt 0:00:09]} 13. e4 {[%emt 0:00:39]} N5b6 {[%emt 0:01:34]} 14. Ba2 {[%emt 0:06:26]} e5 {[%emt 0:00:25]} 15. dxe5 {[%emt 0:08:01]} Nxe5 {[%emt 0:00:21]} 16. Nxe5 {[%emt 0:00:20]} Qxe5 {[%emt 0:00:11]} 17. f4 {[%emt 0:00:34]} Qc5+ {[%emt 0:00:24]} 18. Kh1 {[%emt 0:00:04]} Be6 {[%emt 0:01:45]} 19. Bxe6 {[%emt 0:00:59]} fxe6 {[%emt 0:00:01]} 20. Qb3 {[%emt 0:00:42]} Rae8 {[%emt 0:02:00]} 21. Rad1 {[%emt 0:16:42]} Re7 {[%emt 0:07:17]} 22. Ne2 {[%emt 0:13:27]} Qb4 {[%emt 0:04:11]} 23. Qxb4 {[%emt 0:01:12]} axb4 {[%emt 0:00:02]} 24. b3 {[%emt 0:00:09]} e5 {[%emt 0:03:19]} 25. f5 {[%emt 0:03:34]} Rd7 {[%emt 0:07:41]} 26. a5 {[%emt 0:04:51]} Rfd8 {[%emt 0:00:18]} 27. Rc1 {[%emt 0:00:52]} Rd2 {[%emt 0:01:09]} 28. Ng1 {[%emt 0:01:46]} Nd7 {[%emt 0:01:17]} 29. Nf3 {[%emt 0:02:18]} Rd3 {[%emt 0:01:03]} 30. Rfd1 {[%emt 0:01:56]} Nc5 {[%emt 0:01:11]} 31. Rxd3 {[%emt 0:00:04]} Nxd3 {[%emt 0:00:08]} 32. Rc2 {[%emt 0:00:03]} Kf8 {[%emt 0:03:41]} 33. h3 {[%emt 0:02:35]} Ke8 {[%emt 0:00:40]} 34. a6 {[%emt 0:00:49]} bxa6 {[%emt 0:06:07]} 35. Rxc6 {[%emt 0:00:06]} Nf2+ {[%emt 0:02:26]} 36. Kh2 {[%emt 0:00:21]} Nxe4 {[%emt 0:00:13]} 37. Nxe5 {[%emt 0:02:21]} Nd2 {[%emt 0:04:10]} 1/2-1/2

[Event "Chinese Chess League 2019"]
[Site "Shen Yang"]
[Date "2019.12.07"]
[Round "22.21"]
[White "Peng, Xiongjian"]
[Black "Malakhov, Vladimir"]
[Result "0-1"]
[ECO "A40"]
[WhiteElo "2486"]
[BlackElo "2665"]
[Annotator "ChessBase"]
[PlyCount "162"]
[EventDate "2019.04.09"]
[EventType "team-tourn"]
[EventCountry "CHN"]
[SourceTitle "playchess.com"]
[Source "ChessBase"]
[SourceQuality "1"]
[TimeControl "5400+30"]

1. d4 {[%emt 0:00:00]} g6 {[%emt 0:00:00]} 2. g3 {[%emt 0:00:00]} Bg7 {[%emt 0:00:46]} 3. Bg2 {[%emt 0:00:00]} c5 {[%emt 0:03:09]} 4. dxc5 {[%emt 0:00:17]} Na6 {[%emt 0:08:30]} 5. Nf3 {[%emt 0:01:27]} Nxc5 {[%emt 0:00:11]} 6. O-O {[%emt 0:00:13]} d6 {[%emt 0:04:08]} 7. c4 {[%emt 0:01:52]} Bd7 {[%emt 0:09:16]} 8. Nd4 {[%emt 0:05:27]} Qc8 {[%emt 0:01:15]} 9. Nc3 {[%emt 0:00:27]} Nf6 {[%emt 0:00:21]} 10. Bg5 {[%emt 0:02:28]} h6 {[%emt 0:05:11]} 11. Bxf6 {[%emt 0:00:07]} Bxf6 {[%emt 0:00:05]} 12. Rc1 {[%emt 0:02:39]} Bg7 {[%emt 0:03:26]} 13. b4 {[%emt 0:05:43]} Na6 {[%emt 0:16:04]} 14. c5 {[%emt 0:07:11]} dxc5 {[%emt 0:01:16]} 15. bxc5 {[%emt 0:00:06]} Nb4 {[%emt 0:00:43]} 16. Nd5 {[%emt 0:10:00]} Nc6 {[%emt 0:07:41]} 17. Nb5 {[%emt 0:05:58]} O-O {[%emt 0:00:07]} 18. Nxa7 {[%emt 0:00:30]} Rxa7 {[%emt 0:00:41]} 19. Nb6 {[%emt 0:00:07]} Qc7 {[%emt 0:00:15]} 20. Qxd7 {[%emt 0:00:56]} Qxd7 {[%emt 0:00:05]} 21. Nxd7 {[%emt 0:00:04]} Rd8 {[%emt 0:00:05]} 22. Rfd1 {[%emt 0:06:19]} Nd4 {[%emt 0:00:54]} 23. Nb6 {[%emt 0:00:19]} Nxe2+ {[%emt 0:02:55]} 24. Kf1 {[%emt 0:00:24]} Rxd1+ {[%emt 0:00:16]} 25. Rxd1 {[%emt 0:00:05]} Nd4 {[%emt 0:00:04]} 26. a4 {[%emt 0:10:01]} Ra5 {[%emt 0:06:41]} 27. Rc1 {[%emt 0:04:01]} Nb3 {[%emt 0:02:26]} 28. c6 {[%emt 0:00:38]} bxc6 {[%emt 0:00:06]} 29. Rxc6 {[%emt 0:00:06]} Bd4 {[%emt 0:03:29]} 30. Nd5 {[%emt 0:13:59]} e6 {[%emt 0:05:20]} 31. Nc3 {[%emt 0:00:16]} g5 {[%emt 0:00:52]} 32. Kg1 {[%emt 0:02:21]} Nd2 {[%emt 0:02:26]} 33. Ne4 {[%emt 0:03:22]} Nxe4 {[%emt 0:00:20]} 34. Bxe4 {[%emt 0:00:03]} Rxa4 {[%emt 0:00:07]} 35. Bc2 {[%emt 0:00:34]} Ra3 {[%emt 0:04:30]} 36. Rc4 {[%emt 0:00:23]} e5 {[%emt 0:02:36]} 37. Kg2 {[%emt 0:01:35]} g4 {[%emt 0:00:14]} 38. Be4 {[%emt 0:00:50]} h5 {[%emt 0:01:07]} 39. Rc2 {[%emt 0:02:29]} Ra6 {[%emt 0:02:45]} 40. h3 {[%emt 0:00:34]} Rf6 {[%emt 0:01:04]} 41. hxg4 hxg4 {[%emt 0:00:01]} 42. Bb7 {[%emt 0:01:37]} Kf8 {[%emt 0:00:10]} 43. Bc8 {[%emt 0:00:49]} Rg6 {[%emt 0:00:03]} 44. f3 {[%emt 0:01:45]} gxf3+ {[%emt 0:00:30]} 45. Kxf3 {[%emt 0:00:04]} Rf6+ {[%emt 0:00:05]} 46. Ke4 {[%emt 0:00:30]} Rf1 {[%emt 0:00:05]} 47. g4 {[%emt 0:00:30]} Ke7 {[%emt 0:01:09]} 48. Rc6 {[%emt 0:00:27]} Ba1 {[%emt 0:00:27]} 49. Bf5 {[%emt 0:00:28]} Rf4+ {[%emt 0:00:06]} 50. Kd3 {[%emt 0:00:26]} Bd4 {[%emt 0:01:13]} 51. Ra6 {[%emt 0:00:22]} Bg1 {[%emt 0:00:27]} 52. Ke2 {[%emt 0:00:49]} e4 {[%emt 0:01:50]} 53. Rc6 {[%emt 0:06:03]} Rf2+ {[%emt 0:00:12]} 54. Ke1 {[%emt 0:00:03]} e3 {[%emt 0:00:24]} 55. Rc2 {[%emt 0:00:27]} Rf4 {[%emt 0:00:09]} 56. Rc6 {[%emt 0:00:13]} Rd4 {[%emt 0:00:45]} 57. Rc2 {[%emt 0:01:09]} Kf6 {[%emt 0:00:36]} 58. Kf1 {[%emt 0:00:20]} Bf2 {[%emt 0:00:25]} 59. Ke2 {[%emt 0:00:07]} Kg5 {[%emt 0:00:51]} 60. Kf3 {[%emt 0:00:14]} Rf4+ {[%emt 0:00:14]} 61. Ke2 {[%emt 0:00:05]} Bg1 {[%emt 0:01:42]} 62. Kd3 {[%emt 0:01:07]} Ra4 {[%emt 0:00:30]} 63. Ke2 {[%emt 0:00:35]} Kf4 {[%emt 0:00:33]} 64. Rc7 {[%emt 0:01:17]} Kg3 {[%emt 0:01:40]} 65. Rc2 {[%emt 0:01:02]} Bf2 {[%emt 0:00:51]} 66. Bc8 {[%emt 0:05:06]} f6 {[%emt 0:01:20]} 67. Rb2 {[%emt 0:02:53]} Ra1 {[%emt 0:00:09]} 68. Rc2 {[%emt 0:00:50]} Re1+ {[%emt 0:00:12]} 69. Kd3 {[%emt 0:00:03]} Kf3 {[%emt 0:00:10]} 70. Kc3 {[%emt 0:01:09]} Ra1 {[%emt 0:00:54]} 71. Bb7+ {[%emt 0:00:33]} Kxg4 {[%emt 0:00:06]} 72. Kd3 {[%emt 0:00:12]} Kg3 {[%emt 0:00:49]} 73. Ke4 {[%emt 0:00:08]} Ra5 {[%emt 0:00:16]} 74. Bc8 {[%emt 0:00:15]} Re5+ {[%emt 0:00:15]} 75. Kd3 {[%emt 0:00:06]} f5 {[%emt 0:00:26]} 76. Ke2 {[%emt 0:00:10]} f4 {[%emt 0:00:06]} 77. Bb7 {[%emt 0:00:32]} Rb5 {[%emt 0:00:07]} 78. Rc7 {[%emt 0:00:48]} Rxb7 {[%emt 0:01:11]} 79. Rxb7 {[%emt 0:00:06]} f3+ {[%emt 0:00:02]} 80. Kd3 {[%emt 0:00:05]} e2 {[%emt 0:00:04]} 81. Rg7+ {[%emt 0:00:09]} Kh2 {[%emt 0:00:15] Kd4} 0-1

[Event "Chinese Chess League 2019"]
[Site "Shen Yang"]
[Date "2019.12.07"]
[Round "22.22"]
[White "Naiditsch, Arkadij"]
[Black "Dai, Changren"]
[Result "1-0"]
[ECO "C84"]
[WhiteElo "2617"]
[BlackElo "2509"]
[Annotator "ChessBase"]
[PlyCount "106"]
[EventDate "2019.04.09"]
[EventType "team-tourn"]
[EventCountry "CHN"]
[SourceTitle "playchess.com"]
[Source "ChessBase"]
[SourceQuality "1"]
[TimeControl "5400+30"]

1. e4 {[%emt 0:00:00]} e5 {[%emt 0:00:00]} 2. Nf3 {[%emt 0:00:00]} Nc6 {[%emt 0:00:00]} 3. Bb5 {[%emt 0:00:00]} a6 {[%emt 0:00:00]} 4. Ba4 {[%emt 0:00:01]} Nf6 {[%emt 0:00:00]} 5. O-O {[%emt 0:00:09]} Be7 {[%emt 0:00:00]} 6. d3 {[%emt 0:00:08]} b5 {[%emt 0:00:40]} 7. Bb3 {[%emt 0:00:07]} O-O {[%emt 0:00:26]} 8. Nc3 {[%emt 0:03:21]} d6 {[%emt 0:00:07]} 9. a4 {[%emt 0:06:45]} b4 {[%emt 0:12:17]} 10. Nd5 {[%emt 0:00:37]} Na5 {[%emt 0:00:17]} 11. Nxb4 {[%emt 0:07:08]} Rb8 {[%emt 0:02:10]} 12. Na2 {[%emt 0:11:02]} Bg4 13. Nc3 {[%emt 0:00:30]} Nxb3 14. cxb3 {[%emt 0:00:30]} d5 15. Bg5 {[%emt 0:00:30]} dxe4 16. dxe4 {[%emt 0:00:30]} Qxd1 17. Nxd1 {[%emt 0:00:30]} Bxf3 18. gxf3 {[%emt 0:00:30]} Rxb3 19. Ne3 {[%emt 0:00:30]} h6 20. Bh4 {[%emt 0:00:30]} Nd5 21. Bxe7 {[%emt 0:00:30]} Nxe7 22. Rfc1 {[%emt 0:00:30]} Rc8 23. Ra3 {[%emt 0:00:30]} Rxa3 24. bxa3 {[%emt 0:00:30]} c5 25. Kf1 {[%emt 0:00:30]} f6 26. Ke1 {[%emt 0:00:30]} Kf7 27. Rb1 {[%emt 0:00:30]} c4 28. Rb7 {[%emt 0:00:30]} Ke6 29. Kd2 {[%emt 0:00:30]} c3+ 30. Kc2 {[%emt 0:00:30]} Rc5 31. Nd1 {[%emt 0:00:30]} Nc6 32. Nxc3 {[%emt 0:00:30]} Nd4+ 33. Kb2 {[%emt 0:00:30]} g5 34. Ra7 {[%emt 0:00:30]} Rc6 35. a5 {[%emt 0:00:30]} Nxf3 36. Nd5 {[%emt 0:00:30]} Nd2 37. Nb4 {[%emt 0:00:30]} Rd6 38. f3 {[%emt 0:00:30]} Nc4+ 39. Kc3 {[%emt 0:00:30]} Nxa3 40. Rxa6 {[%emt 0:00:30]} Rxa6 41. Nxa6 {[%emt 0:00:30]} Kd7 42. Kb4 {[%emt 0:00:30]} Nc2+ 43. Kc5 {[%emt 0:00:30]} Kc8 44. Nb4 {[%emt 0:00:30]} Ne3 45. Nd5 {[%emt 0:00:30]} Nf1 46. a6 {[%emt 0:00:30]} Nd2 47. Nxf6 {[%emt 0:00:30]} Kc7 48. Kb5 {[%emt 0:00:30]} h5 49. h3 {[%emt 0:00:30]} h4 50. Kc5 {[%emt 0:00:30]} Nxf3 51. Nd5+ {[%emt 0:00:30]} Kc8 52. Kb6 {[%emt 0:00:30]} Kb8 53. a7+ {[%emt 0:00:30]} Ka8 1-0

[Event "Chinese Chess League 2019"]
[Site "Shen Yang"]
[Date "2019.12.07"]
[Round "22.24"]
[White "Munguntuul, Batkhuyag"]
[Black "Huang, Qian"]
[Result "1/2-1/2"]
[ECO "B92"]
[WhiteElo "2436"]
[BlackElo "2427"]
[Annotator "ChessBase"]
[PlyCount "28"]
[EventDate "2019.04.09"]
[EventType "team-tourn"]
[EventCountry "CHN"]
[SourceTitle "playchess.com"]
[Source "ChessBase"]
[SourceQuality "1"]
[TimeControl "5400+30"]

1. e4 {[%emt 0:00:00]} c5 {[%emt 0:00:47]} 2. Nf3 {[%emt 0:00:00]} d6 {[%emt 0:00:09]} 3. d4 {[%emt 0:00:00]} cxd4 {[%emt 0:00:09]} 4. Nxd4 {[%emt 0:00:00]} Nf6 {[%emt 0:00:11]} 5. Nc3 {[%emt 0:00:00]} a6 {[%emt 0:00:11]} 6. Be2 {[%emt 0:00:00]} e5 {[%emt 0:01:44]} 7. Nf3 {[%emt 0:00:08]} h6 {[%emt 0:02:49]} 8. Nd2 {[%emt 0:02:56]} Be6 {[%emt 0:12:31]} 9. Nc4 {[%emt 0:01:42]} Qc7 {[%emt 0:00:11]} 10. Ne3 {[%emt 0:01:01]} Nbd7 {[%emt 0:00:43]} 11. Ned5 {[%emt 0:21:29]} Qc6 {[%emt 0:14:58]} 12. Nb4 {[%emt 0:05:03]} Qc7 {[%emt 0:03:54]} 13. Nbd5 Qc6 {[%emt 0:00:30]} 14. Nb4 Qc7 {[%emt 0:00:30]} 1/2-1/2

[Event "Chinese Chess League 2019"]
[Site "Shen Yang"]
[Date "2019.12.07"]
[Round "22.25"]
[White "Xiao, Yiyi"]
[Black "Javakhishvili, Lela"]
[Result "0-1"]
[ECO "A57"]
[WhiteElo "2316"]
[BlackElo "2457"]
[Annotator "ChessBase"]
[PlyCount "62"]
[EventDate "2019.04.09"]
[EventType "team-tourn"]
[EventCountry "CHN"]
[SourceTitle "playchess.com"]
[Source "ChessBase"]
[SourceQuality "1"]
[TimeControl "5400+30"]

1. d4 {[%emt 0:00:00]} Nf6 {[%emt 0:00:00]} 2. c4 {[%emt 0:00:00]} c5 {[%emt 0:00:00]} 3. d5 {[%emt 0:00:00]} b5 {[%emt 0:00:01]} 4. cxb5 {[%emt 0:00:00]} a6 {[%emt 0:00:03]} 5. b6 {[%emt 0:00:53]} d6 {[%emt 0:00:09]} 6. Nc3 {[%emt 0:00:06]} Nbd7 {[%emt 0:00:16]} 7. e4 {[%emt 0:00:16]} g6 {[%emt 0:01:00]} 8. Nf3 {[%emt 0:00:22]} Rb8 {[%emt 0:00:48]} 9. Nd2 {[%emt 0:01:36]} Nxb6 {[%emt 0:04:18]} 10. Be2 {[%emt 0:02:58]} Bg7 {[%emt 0:00:27]} 11. a4 {[%emt 0:00:47]} O-O {[%emt 0:04:36]} 12. O-O {[%emt 0:01:45]} a5 {[%emt 0:16:57]} 13. Qc2 {[%emt 0:16:00]} e6 {[%emt 0:03:23]} 14. dxe6 {[%emt 0:05:52]} Bxe6 {[%emt 0:00:25]} 15. Nb5 {[%emt 0:03:22]} Qe7 {[%emt 0:01:53]} 16. Nf3 {[%emt 0:15:20]} Bd7 {[%emt 0:12:14]} 17. Nxd6 {[%emt 0:21:35]} Qxd6 {[%emt 0:01:49]} 18. e5 {[%emt 0:00:05]} Qc7 {[%emt 0:02:11]} 19. exf6 {[%emt 0:00:07]} Bxf6 {[%emt 0:00:05]} 20. Be3 {[%emt 0:00:30]} Nxa4 {[%emt 0:05:46]} 21. Rfb1 {[%emt 0:09:33]} Rxb2 {[%emt 0:10:41]} 22. Rxb2 {[%emt 0:00:07]} Nxb2 {[%emt 0:00:04]} 23. Qxc5 {[%emt 0:12:44]} Qxc5 {[%emt 0:01:44]} 24. Bxc5 {[%emt 0:00:01]} Re8 {[%emt 0:03:55]} 25. Kf1 {[%emt 0:01:36]} Rxe2 {[%emt 0:05:03]} 26. Rxa5 {[%emt 0:01:50]} Re8 {[%emt 0:00:32]} 27. h3 {[%emt 0:00:30]} Nc4 {[%emt 0:01:20]} 28. Ra7 {[%emt 0:00:16]} Bc6 {[%emt 0:01:32]} 29. Bb4 {[%emt 0:02:21]} Bxf3 {[%emt 0:01:04]} 30. gxf3 {[%emt 0:00:01]} Ne5 {[%emt 0:00:31]} 31. Ra6 {[%emt 0:00:13]} Be7 {[%emt 0:01:17]} 0-1